Workbook

Sheet Tipsene
A1: Øvelse | B1: Dato | C1: Anders Auestad | D1: =SUM(D2:D43) -> 165 | E1: Audun Tyssøy | F1: =SUM(F2:F43) -> 143 | G1: Bjørn Erik Hansen | H1: =SUM(H2:H43) -> 168 | I1: Douglas Murphy | J1: =SUM(J2:J43) -> 143 | K1: Einar Matre | L1: =SUM(L2:L43) -> 154 | M1: Erlend F. Matre | N1: =SUM(N2:N43) -> 164 | O1: Geir Auestad | P1: =SUM(P2:P43) -> 156 | Q1: Håkon Austrheim | R1: =SUM(R2:R43) -> 204 | S1: Herman Austrheim | T1: =SUM(T2:T43) -> 138 | U1: Hilde Storbakken | V1: =SUM(V2:V43) -> 86 | W1: Ivar Areklett | X1: =SUM(X2:X43) -> 188 | Y1: Johannes Austrheim | Z1: =SUM(Z2:Z43) -> 147 | AA1: Jørgen Ohm | AB1: =SUM(AB2:AB43) -> 157 | AC1: Jørgen Voilås | AD1: =SUM(AD2:AD43) -> 119 | AE1: Kjell Inge Ingebrigtsen | AF1: =SUM(AF2:AF43) -> 178 | AG1: Kristian Røvang | AH1: =SUM(AH2:AH43) -> 141 | AI1: Leif Andre Brekke | AJ1: =SUM(AJ2:AJ43) -> 182 | AK1: Magne Melkevik | AL1: =SUM(AL2:AL43) -> 169 | AM1: Martin Austrheim | AN1: =SUM(AN2:AN43) -> 175 | AO1: Morten Løvik | AP1: =SUM(AP2:AP43) -> 153 | AQ1: Nikolai Ellingsen | AR1: =SUM(AR2:AR43) -> 159 | AS1: Oddve Solberg | AT1: =SUM(AT2:AT43) -> 158 | AU1: Onar Ohm Børretzen | AV1: =SUM(AV2:AV43) -> 159 | AW1: Robert Aak Eide | AX1: =SUM(AX2:AX43) -> 181 | AY1: Sigurd S. Staveland | AZ1: =SUM(AZ2:AZ43) -> 160 | BA1: Terje Osmundsen | BB1: =SUM(BB2:BB43) -> 172 | BC1: Tobby Voilås | BD1: =SUM(BD2:BD43) -> 169 | BE1: Toralf Geitung | BF1: =SUM(BF2:BF43) -> 159 | BG1: Tore Geitung | BH1: =SUM(BH2:BH43) -> 157 | BI1: Torgeir Katla | BJ1: =SUM(BJ2:BJ43) -> 169
A2: Langrenn damer duathlon | B2: 2022-02-05 | C2: Frida Karlsson | D2: 1 | E2: Diggins | F2: 1 | G2: Johaug | H2: 7 | I2: Frida Karlsson | J2: 1 | K2: Frida Karlsson | L2: 1 | M2: Frida Karlsson | N2: 1 | O2: Johaug | P2: 7 | Q2: Johaug | R2: 7 | S2: Therese Johaug | T2: 7 | U2: Maiken C. Falla | V2: 0 | W2: Johaug | X2: 7 | Y2: Johaug | Z2: 7 | AA2: Therese Johaug | AB2: 7 | AC2: Therese Johaug | AD2: 7 | AE2: Johaug | AF2: 7 | AG2: Johaug | AH2: 7 | AI2: Johaug | AJ2: 7 | AK2: Therese Johaug | AL2: 7 | AM2: Therese Johaug | AN2: 7 | AO2: Johaug | AP2: 7 | AQ2: Therese Johaug | AR2: 7 | AS2: Therese Johaug | AT2: 7 | AU2: Therese Johaug | AV2: 7 | AW2: Johaug | AX2: 7 | AY2: Johaug | AZ2: 7 | BA2: Johaug | BB2: 7 | BC2: Karlsson | BD2: 1 | BE2: Therese Johaug | BF2: 7 | BG2: Therese Johaug | BH2: 7 | BI2: Frida Karlsson | BJ2: 1
A3: Skiskyting mix stafett | B3: 2022-02-05 | C3: Frankrike | D3: 5 | E3: Frankrike | F3: 5 | G3: Frankrike | H3: 5 | I3: Norge | J3: 7 | K3: Norge | L3: 7 | M3: Norge | N3: 7 | O3: Norge | P3: 7 | Q3: Norge | R3: 7 | S3: Norge | T3: 7 | U3: Frankrike | V3: 5 | W3: Norge | X3: 7 | Y3: Norge | Z3: 7 | AA3: Norge | AB3: 7 | AC3: Norge | AD3: 7 | AE3: Norge | AF3: 7 | AG3: Norge | AH3: 7 | AI3: Norge | AJ3: 7 | AK3: Norge | AL3: 7 | AM3: Norge | AN3: 7 | AO3: Norge | AP3: 7 | AQ3: Norge | AR3: 7 | AS3: Norge | AT3: 7 | AU3: Norge | AV3: 7 | AW3: Frankrike | AX3: 5 | AY3: Norge | AZ3: 7 | BA3: Norge | BB3: 7 | BC3: Frankrike | BD3: 5 | BE3: Norge | BF3: 7 | BG3: Norge | BH3: 7 | BI3: Frankrike | BJ3: 5
A4: Hopp normal bakke kvinner | B4: 2022-02-05 | C4: Althaus | D4: 5 | E4: Ursa Bogataj | F4: 7 | G4: Althaus | H4: 5 | I4: Katharina Althus | J4: 5 | K4: Katharina Althaus | L4: 5 | M4: Sara Takanashi | N4: 1 | O4: Takanashi | P4: 1 | Q4: Takanashi | R4: 1 | S4: Katharina Althaus | T4: 5 | U4: Marita Kramer | V4: 0 | W4: Kramer | X4: 0 | Y4: Althaus | Z4: 5 | AA4: Katharina Althaus | AB4: 5 | AC4: Marita Kramer | AD4: 0 | AE4: S. Takanashi | AF4: 1 | AG4: Kriznar | AH4: 3 | AI4: Takanashi | AJ4: 1 | AK4: Ema klinec | AL4: 1 | AM4: Sara Takanashi | AN4: 1 | AO4: Kriznar | AP4: 3 | AQ4: Sara Takanshi | AR4: 1 | AS4: Katharina Althaus | AT4: 5 | AU4: Kriznar | AV4: 3 | AW4: Takanashi | AX4: 1 | AY4: Takanashi | AZ4: 1 | BA4: Kriznar | BB4: 3 | BC4: K Althaus | BD4: 5 | BE4: Sara Takanashi | BF4: 1 | BG4: Marita Kramer | BH4: 0 | BI4: Katharina Althaus | BJ4: 5
A5: Alpint, utfor menn | B5: 2022-02-06 | C5: Feuz | D5: 7 | E5: Dominik Paris | F5: 1 | G5: Feuz | H5: 7 | I5: Aleksander Aamodt Kilde | J5: 1 | K5: Aleksander Aamodt Kilde | L5: 1 | M5: Beat Feuz | N5: 7 | O5: Kilde | P5: 1 | Q5: Kilde | R5: 1 | S5: A. A. Kilde | T5: 1 | U5: Marco Odermatt | V5: 0 | W5: Kilde | X5: 1 | Y5: Kilde | Z5: 1 | AA5: Aleksander Aamodt Kilde | AB5: 1 | AC5: Dominik Paris | AD5: 1 | AE5: Aamodt Kilde | AF5: 1 | AG5: Odermatt | AH5: 0 | AI5: Aamodt Kilde | AJ5: 1 | AK5: Aamodt Kilde | AL5: 1 | AM5: Aleksander Aamodt Kilde | AN5: 1 | AO5: Odermatt | AP5: 0 | AQ5: Matthias Meyer | AR5: 3 | AS5: Aleksander Aamodt Kilde | AT5: 1 | AU5: Kilde | AV5: 1 | AW5: Kilde | AX5: 1 | AY5: Kilde | AZ5: 1 | BA5: Feuz | BB5: 7 | BC5: Feuz | BD5: 7 | BE5: Aleksander Kilde | BF5: 1 | BG5: Aleksander Aamodt Kilde | BH5: 1 | BI5: Alexander Aamodt Kilde | BJ5: 1
A6: Langrenn menn duathlon | B6: 2022-02-06 | C6: Klæbø | D6: 0 | E6: Bolsjunov | F6: 7 | G6: Klæbo | H6: 0 | I6: Johannes Høsflot Klæbo | J6: 0 | K6: Johannes Høstflot Klæbo | L6: 0 | M6: Johannes Høstflot Klæbo | N6: 0 | O6: Klæbo | P6: 0 | Q6: Bolsjunov | R6: 7 | S6: J. H. Klæbo | T6: 0 | U6: Hans Christer Holund | V6: 1 | W6: Bolsjunov | X6: 7 | Y6: Klæbo | Z6: 0 | AA6: Johannes Høsflot Klæbo | AB6: 0 | AC6: Klæbo | AD6: 0 | AE6: Klæbo | AF6: 0 | AG6: Klæbo | AH6: 0 | AI6: Klæbo | AJ6: 0 | AK6: Klæbo | AL6: 0 | AM6: Johannes Høsflot Klæbo | AN6: 0 | AO6: Klæbo | AP6: 0 | AQ6: Johannes Høsflot Klæbo | AR6: 0 | AS6: Johannes Høsflot Klæbo | AT6: 0 | AU6: Johannes H. Klæbo | AV6: 0 | AW6: Bolshunov | AX6: 7 | AY6: Klæbo | AZ6: 0 | BA6: Klæbo | BB6: 0 | BC6: Klæbo | BD6: 0 | BE6: Aleksander Bolsjhunov | BF6: 7 | BG6: Johannes Høsflot Klæbo | BH6: 0 | BI6: Johannes Klæbo | BJ6: 0
A7: Hopp normal bakke menn | B7: 2022-02-06 | C7: Kobayashi | D7: 7 | E7: Geiger | F7: 0 | G7: R. Kabayashi | H7: 7 | I7: Ryoyu Kobayashi | J7: 7 | K7: Ryoyu Kobayashi | L7: 7 | M7: Karl Geiger | N7: 0 | O7: Granerud | P7: 0 | Q7: Kobayashi | R7: 7 | S7: Marius Lindvik | T7: 0 | U7: Karl Geiger | V7: 0 | W7: Lindvik | X7: 0 | Y7: Lindvik | Z7: 0 | AA7: Ryoyu Kobayashi | AB7: 7 | AC7: Karl Geiger | AD7: 0 | AE7: R. Kobayashi | AF7: 7 | AG7: Kobayashi | AH7: 7 | AI7: Kobayashi | AJ7: 7 | AK7: Lindvik | AL7: 0 | AM7: Ryou Kobayashi | AN7: 7 | AO7: Geiger | AP7: 0 | AQ7: Ryoyu Kobayashi | AR7: 7 | AS7: Karl Geiger | AT7: 0 | AU7: Kobayashi | AV7: 7 | AW7: Kobayashi | AX7: 7 | AY7: Kobayashi | AZ7: 7 | BA7: R. Kobayashi | BB7: 7 | BC7: Kobayashi | BD7: 7 | BE7: Karl Geiger | BF7: 0 | BG7: Halvor Egner Granerud | BH7: 0 | BI7: Ruoyu Kobayashi | BJ7: 7
A8: Alpint damer storslalåm | B8: 2022-02-07 | C8: Hector | D8: 7 | E8: Shiffrin | F8: 0 | G8: T. Worley | H8: 0 | I8: Mikaela Shiffrin | J8: 0 | K8: Mikaela Shiffrin | L8: 0 | M8: Mikaela Shiffrin | N8: 0 | O8: Mikaela Shiffrin | P8: 0 | Q8: Hector | R8: 7 | S8: Tessa Worley | T8: 0 | U8: Mikaela Shiffrin | V8: 0 | W8: Hector | X8: 7 | Y8: Hecktor | Z8: 7 | AA8: Mikaela Shifrinn | AB8: 0 | AC8: Mikaela Shiffrin | AD8: 0 | AE8: Shiffrin | AF8: 0 | AG8: Shiffrin | AH8: 0 | AI8: Shiffrin | AJ8: 0 | AK8: Sara Hector | AL8: 7 | AM8: Sara Hector | AN8: 7 | AO8: Shiffrin | AP8: 0 | AQ8: Mikaela Shiffrin | AR8: 0 | AS8: Sara Hector | AT8: 7 | AU8: Petra Vlhova | AV8: 0 | AW8: Hector | AX8: 7 | AY8: Vlhová | AZ8: 0 | BA8: Shiffrin | BB8: 0 | BC8: Shiffrin | BD8: 0 | BE8: Petra Vlhova | BF8: 0 | BG8: Sara Hector | BH8: 7 | BI8: Mikaela Shiffrin | BJ8: 0
A9: Skiskyting damer 15 km | B9: 2022-02-07 | C9: H.Øberg | D9: 0 | E9: Røiseland | F9: 3 | G9: Davidova | H9: 1 | I9: Tirill Ekhoff | J9: 0 | K9: Marte Olsbu Røiseland | L9: 3 | M9: Marte Olsbu Røiseland | N9: 3 | O9: Olsbu | P9: 3 | Q9: Røiseland | R9: 3 | S9: Marte Olsbu Røiseland | T9: 3 | U9: Marte Olsbu Røiseland | V9: 3 | W9: Røiseland | X9: 3 | Y9: Røiseland | Z9: 3 | AA9: Hanna Öberg | AB9: 0 | AC9: Julia Simon | AD9: 0 | AE9: Røiseland | AF9: 3 | AG9: Tandrevold | AH9: 0 | AI9: Røiseland | AJ9: 3 | AK9: Røiseland | AL9: 3 | AM9: Marte Olsbu Røiseland | AN9: 3 | AO9: Bouchet * | AP9: 0 | AQ9: Marte Olsbu Røiseland | AR9: 3 | AS9: Marketa Davidova | AT9: 1 | AU9: Marketa Davidova | AV9: 1 | AW9: Elvira Øberg | AX9: 0 | AY9: Hauser | AZ9: 0 | BA9: Røiseland | BB9: 3 | BC9: Olsbu Røisland | BD9: 3 | BE9: Marte O. Røiseland | BF9: 3 | BG9: Marte Olsbu Røiseland | BH9: 3 | BI9: Alimbekeva | BJ9: 1
A10: Hopp blandet lagkonkurranse | B10: 2022-02-07 | C10: Tyskland | D10: 0 | E10: Tyskland | F10: 0 | G10: Tyskland | H10: 0 | I10: Tyskland | J10: 0 | K10: Tyskland | L10: 0 | M10: Tyskland | N10: 0 | O10: Slovenia | P10: 7 | Q10: Slovenia | R10: 7 | S10: Slovenia | T10: 7 | U10: Norge | V10: 0 | W10: Slovenia | X10: 7 | Y10: Østerrike | Z10: 1 | AA10: Tyskland | AB10: 0 | AC10: Østerike | AD10: 1 | AE10: Østerrike | AF10: 1 | AG10: Sveits | AH10: 0 | AI10: Slovenia | AJ10: 7 | AK10: Tyskland | AL10: 0 | AM10: Slovenia | AN10: 7 | AO10: Slovenia | AP10: 7 | AQ10: Tyskland | AR10: 0 | AS10: Slovenia | AT10: 7 | AU10: Tyskland | AV10: 0 | AW10: Slovenia | AX10: 7 | AY10: Slovenia | AZ10: 7 | BA10: Norge | BB10: 0 | BC10: Tyskland | BD10: 0 | BE10: Tyskland | BF10: 0 | BG10: Norge | BH10: 0 | BI10: Slovenia | BJ10: 7
A11: Alpint Super G- menn | B11: 2022-02-08 | C11: Odermatt | D11: 0 | E11: Kilde | F11: 3 | G11: Kilde | H11: 3 | I11: Matthias Mayer | J11: 7 | K11: Aleksander Aamodt Kilde | L11: 3 | M11: Aleksander Aamodt Kilde | N11: 3 | O11: Odermatt | P11: 0 | Q11: Odermatt | R11: 0 | S11: A. A. Kilde | T11: 3 | U11: Aleksander A. Kilde | V11: 3 | W11: Kilde | X11: 3 | Y11: Kilde | Z11: 3 | AA11: Marco Odermatt | AB11: 0 | AC11: Marco Odermatt | AD11: 0 | AE11: Odermatt. M | AF11: 0 | AG11: Kilde | AH11: 3 | AI11: Odermatt | AJ11: 0 | AK11: Aamodt Kilde | AL11: 3 | AM11: Aleksander Aamodt Kilde | AN11: 3 | AO11: Kilde | AP11: 3 | AQ11: Aleksander Aamodt Kilde | AR11: 3 | AS11: Marco Odermatt | AT11: 0 | AU11: Marco Odermatt | AV11: 0 | AW11: Odermatt | AX11: 0 | AY11: Odermatt | AZ11: 0 | BA11: Aamodt Kilde | BB11: 3 | BC11: A. Kilde | BD11: 3 | BE11: Aleksander Kilde | BF11: 3 | BG11: Aleksander Aamodt Kilde | BH11: 3 | BI11: Marco Odermatt | BJ11: 0
A12: Langrenn damer sprint fri | B12: 2022-02-08 | C12: Dahlqvist | D12: 5 | E12: Hagstrøm | F12: 0 | G12: Dahlqvist | H12: 5 | I12: Maja Dahlqvist | J12: 5 | K12: Jonna Sundling | L12: 7 | M12: Maja Dahlqvist | N12: 5 | O12: Dahlqvist | P12: 5 | Q12: Sundling | R12: 7 | S12: Maja Dahlqvist | T12: 5 | U12: Therese Johaug | V12: 0 | W12: Dahlqvist | X12: 5 | Y12: Dahlqvist | Z12: 5 | AA12: Maja Dahlqvist | AB12: 5 | AC12: Maja Dahlqvist | AD12: 5 | AE12: M. Dahlquist | AF12: 5 | AG12: Dahlqvist | AH12: 5 | AI12: Dahlqvist | AJ12: 5 | AK12: Dahlquist | AL12: 5 | AM12: Maja Dahlquist | AN12: 5 | AO12: Dahlquist | AP12: 5 | AQ12: Maja Dahlqvist | AR12: 5 | AS12: Maja Dahlqvist | AT12: 5 | AU12: Maja Dahlqvist | AV12: 5 | AW12: Maja Dahlqvist | AX12: 5 | AY12: Diggins | AZ12: 3 | BA12: Dahlquist | BB12: 5 | BC12: M dahlquist | BD12: 5 | BE12: Maja Dahlqvist | BF12: 5 | BG12: Jonna Sundling | BH12: 7 | BI12: Maja Dahlquist | BJ12: 5
A13: Langrenn menn sprint fri | B13: 2022-02-08 | C13: Klæbo | D13: 7 | E13: Klæbo | F13: 7 | G13: Klæbo | H13: 7 | I13: Johannes Høsflot Klæbo | J13: 7 | K13: Johannes Høstflot Klæbo | L13: 7 | M13: Johannes Høstflot Klæbo | N13: 7 | O13: Klæbo | P13: 7 | Q13: Klæbo | R13: 7 | S13: J. H. Klæbo | T13: 7 | U13: Sergej Ustjugov | V13: 0 | W13: Klæbo | X13: 7 | Y13: Klæbo | Z13: 7 | AA13: Johannes Høsflot Klæbo | AB13: 7 | AC13: Klæbo | AD13: 7 | AE13: Klæbo | AF13: 7 | AG13: Klæbo | AH13: 7 | AI13: Klæbo | AJ13: 7 | AK13: Klæbo | AL13: 7 | AM13: Johannes Høsflot Klæbo | AN13: 7 | AO13: Klæbo | AP13: 7 | AQ13: Johannes Høsflot Klæbo | AR13: 7 | AS13: Johannes Høsflot Klæbo | AT13: 7 | AU13: Johannes H. Klæbo | AV13: 7 | AW13: Klæbo | AX13: 7 | AY13: Klæbo | AZ13: 7 | BA13: Klæbo | BB13: 7 | BC13: Klæbo | BD13: 7 | BE13: Johannes H. Klæbo | BF13: 7 | BG13: Johannes Høsflot Klæbo | BH13: 7 | BI13: Johannes Klæbo | BJ13: 7
A14: Skiskyting menn 20 km | B14: 2022-02-08 | C14: Lægreid | D14: 0 | E14: Doll | F14: 1 | G14: Lægreid | H14: 0 | I14: Sturla Holm Lægereid | J14: 0 | K14: Sturla Holm Lægreid | L14: 0 | M14: Sturla Holm Lægreid | N14: 0 | O14: Lægreid | P14: 0 | Q14: Lægreid | R14: 0 | S14: Eduard Latypov | T14: 0 | U14: Tarjei Bø | V14: 0 | W14: Fillon Maillet | X14: 7 | Y14: Johannes T. Bø | Z14: 3 | AA14: Tarjei Bø | AB14: 0 | AC14: Tarjei Bø | AD14: 0 | AE14: Fillon Maillet | AF14: 7 | AG14: Lægreid | AH14: 0 | AI14: Lægreid | AJ14: 0 | AK14: Fillon Maillet | AL14: 7 | AM14: Sturla Holm Lægreid | AN14: 0 | AO14: Samuelsson | AP14: 0 | AQ14: Sturla Holm Lægreid | AR14: 0 | AS14: Anton Babikov | AT14: 0 | AU14: Tarjei Bø | AV14: 0 | AW14: Fillon Maillet | AX14: 7 | AY14: Tarjei Bøe | AZ14: 0 | BA14: JT Bøe | BB14: 3 | BC14: QF Maillet | BD14: 7 | BE14: Sturla H. Lægreid | BF14: 0 | BG14: Sturla Holm Lægreid | BH14: 0 | BI14: Sturla Holm Lægreid | BJ14: 0
A15: Alpint, slalåm kvinner | B15: 2022-02-09 | C15: Shiffrin | D15: 0 | E15: Vlhova | F15: 7 | G15: Vlhova | H15: 7 | I15: Mikaela Shiffrin | J15: 0 | K15: Lena Duerr | L15: 1 | M15: Petra Vlhova | N15: 7 | O15: Vlhova | P15: 7 | Q15: Vlhova | R15: 7 | S15: Mikaela Shiffrin | T15: 0 | U15: Petra Vlhova | V15: 7 | W15: Vlhová | X15: 7 | Y15: Schiffrin | Z15: 0 | AA15: Petra Vlhova | AB15: 7 | AC15: Petra Vihova | AD15: 7 | AE15: Vlhova Petra | AF15: 7 | AG15: Shiffrin | AH15: 0 | AI15: Vlhova | AJ15: 7 | AK15: Sara Hector | AL15: 0 | AM15: Mikaela Shiffrin | AN15: 0 | AO15: Vlhova | AP15: 7 | AQ15: Petra Vlhova | AR15: 7 | AS15: Petra Vilhová | AT15: 7 | AU15: Shiffrin | AV15: 0 | AW15: Vlhova | AX15: 7 | AY15: Shiffrin | AZ15: 0 | BA15: Vlhova | BB15: 7 | BC15: Petra Vlhova | BD15: 7 | BE15: Petra Vlhova | BF15: 7 | BG15: Petra Vlhova | BH15: 7 | BI15: Petra Vhlova | BJ15: 7
A16: Kombinert normal bakke menn | B16: 2022-02-09 | C16: Lamparter | D16: 1 | E16: Lamparter | F16: 1 | G16: Riiber | H16: 0 | I16: Jarl Magnis Riiber | J16: 0 | K16: Jarl Magnus Riiber | L16: 0 | M16: Johannes Lamparter | N16: 1 | O16: Geiger | P16: 7 | Q16: Lamparter | R16: 1 | S16: Johannes Lamparter | T16: 1 | U16: Jarl Magnus Riiber | V16: 0 | W16: Lamparter | X16: 1 | Y16: Lamparter | Z16: 1 | AA16: Vinzenz Geiger | AB16: 7 | AC16: Jørgen Graabak | AD16: 5 | AE16: Lamparter | AF16: 1 | AG16: Lamparter | AH16: 1 | AI16: Lamparter | AJ16: 1 | AK16: Lamparter | AL16: 1 | AM16: Johannes Lamparter | AN16: 1 | AO16: Lamparter | AP16: 1 | AQ16: Johannes Lamparter | AR16: 1 | AS16: Vinzenz Geiger | AT16: 7 | AU16: Vinzenz Geiger | AV16: 7 | AW16: Lamparter | AX16: 1 | AY16: Lamparter | AZ16: 1 | BA16: Riiber | BB16: 0 | BC16: Gråbakk | BD16: 5 | BE16: Jarl M. Riiber | BF16: 0 | BG16: Johannes Lamparter | BH16: 1 | BI16: Jarl Magnus Riiber | BJ16: 0
A17: Alpint, kombinasjon menn | B17: 2022-02-10 | C17: Meillard | D17: 0 | E17: Odermatt | F17: 0 | G17: Pinturault | H17: 0 | I17: Vincent Kriechmayer | J17: 0 | K17: Marco Odermatt | L17: 0 | M17: Alexis Pinturault | N17: 0 | O17: Odermatt | P17: 0 | Q17: Odermatt | R17: 0 | S17: Alexis Pinturault | T17: 0 | U17: Matthias Mayer | V17: 0 | W17: Odermatt | X17: 0 | Y17: Kilde | Z17: 5 | AA17: Alexis Pinturault | AB17: 0 | AC17: Matthias Mayer | AD17: 0 | AE17: Odermatt.M | AF17: 0 | AG17: Feuz | AH17: 0 | AI17: Pinturault | AJ17: 0 | AK17: Aamodt Kilde | AL17: 5 | AM17: Loic Meillard | AN17: 0 | AO17: Pinturault | AP17: 0 | AQ17: Loic Meillard | AR17: 0 | AS17: Alexis Pinturault | AT17: 0 | AU17: Pinturault | AV17: 0 | AW17: Alexis Pinturault | AX17: 0 | AY17: Meillard | AZ17: 0 | BA17: Odermatt | BB17: 0 | BC17: Odermat | BD17: 0 | BE17: Marco Odermatt | BF17: 0 | BG17: Marco Odermatt | BH17: 0 | BI17: Alexis Pinturault | BJ17: 0
A18: Langrenn damer 10 km klassisk | B18: 2022-02-10 | C18: Johaug | D18: 7 | E18: Johaug | F18: 7 | G18: Johaug | H18: 7 | I18: Therese Johaug | J18: 7 | K18: Therese Johaug | L18: 7 | M18: Therese Johaug | N18: 7 | O18: Johaug | P18: 7 | Q18: Johaug | R18: 7 | S18: Therese Johaug | T18: 7 | U18: Jessie Diggins | V18: 0 | W18: Johaug | X18: 7 | Y18: Johaug | Z18: 7 | AA18: Therese Johaug | AB18: 7 | AC18: Johaug | AD18: 7 | AE18: Johaug | AF18: 7 | AG18: Johaug | AH18: 7 | AI18: Johaug | AJ18: 7 | AK18: Therese Johaug | AL18: 7 | AM18: Therese Johaug | AN18: 7 | AO18: Karlsson | AP18: 0 | AQ18: Therese Johaug | AR18: 7 | AS18: Therese Johaug | AT18: 7 | AU18: Therese Johaug | AV18: 7 | AW18: Johaug | AX18: 7 | AY18: Johaug | AZ18: 7 | BA18: Johaug | BB18: 7 | BC18: T. Johaug | BD18: 7 | BE18: Therese Johaug | BF18: 7 | BG18: Therese Johaug | BH18: 7 | BI18: Therese Johaug | BJ18: 7
A19: Alpint, Super G- kvinner | B19: 2022-02-11 | C19: Brignone | D19: 0 | E19: Brignone | F19: 0 | G19: Gut-Behrami | H19: 7 | I19: Frederica Brignone | J19: 0 | K19: Sara Hector | L19: 0 | M19: Elena Curtoni | N19: 0 | O19: Brignone | P19: 0 | Q19: Brignone | R19: 0 | S19: Lara Gut-Behrami | T19: 7 | U19: Sofia Goggia | V19: 0 | W19: Brignone | X19: 0 | Y19: Brignone | Z19: 0 | AA19: Federica Brignone | AB19: 0 | AC19: Corinne Suter | AD19: 0 | AE19: Brignone | AF19: 0 | AG19: Brignone | AH19: 0 | AI19: Brignone | AJ19: 0 | AK19: Goggia | AL19: 0 | AM19: Frederica Brignone | AN19: 0 | AO19: Gut-Behrami | AP19: 7 | AQ19: Lara Gut-Behrami | AR19: 7 | AS19: Elena Curtoni | AT19: 0 | AU19: Shiffrin | AV19: 0 | AW19: Hector | AX19: 0 | AY19: Brignone | AZ19: 0 | BA19: Brigone | BB19: 0 | BC19: Lara Gut Behrami | BD19: 7 | BE19: Lara Gut | BF19: 7 | BG19: Sofia Goggia | BH19: 0 | BI19: Lara Gut Behrami | BJ19: 7
A20: Langrenn menn 15 km klassisk | B20: 2022-02-11 | C20: Bolshunov | D20: 5 | E20: Niskanen | F20: 7 | G20: Holund | H20: 1 | I20: Alexander Bolshunov | J20: 5 | K20: Johannes Høstflot Klæbo | L20: 3 | M20: Iivo Niskanen | N20: 7 | O20: Niskanen | P20: 7 | Q20: Niskanen | R20: 7 | S20: Iivo Niskanen | T20: 7 | U20: Johannes H. Klæbo | V20: 3 | W20: Bolsjunov | X20: 5 | Y20: Bolsjonov | Z20: 5 | AA20: Johannes Høsflot Klæbo | AB20: 3 | AC20: Klæbo | AD20: 3 | AE20: Iivo Niskanen | AF20: 7 | AG20: Bolshunov | AH20: 5 | AI20: Niskanen | AJ20: 7 | AK20: Niskanen | AL20: 7 | AM20: Aleksander Bolshunov | AN20: 5 | AO20: Niskanen | AP20: 7 | AQ20: Ivo Niskanen | AR20: 7 | AS20: Johannes Høsflot Klæbo | AT20: 3 | AU20: Bolsjunov | AV20: 5 | AW20: Niskanen | AX20: 7 | AY20: Niskanen | AZ20: 7 | BA20: Niskanen | BB20: 7 | BC20: Niskanen | BD20: 7 | BE20: Aleksander Bolsjhunov | BF20: 5 | BG20: Johannes Høsflot Klæbo | BH20: 3 | BI20: Ivo Niskanen | BJ20: 7
A21: Skiskyting damer sprint | B21: 2022-02-11 | C21: Røiseland | D21: 7 | E21: Elvira Øberg | F21: 5 | G21: E. Øberg | H21: 5 | I21: Elvira Øberg | J21: 5 | K21: Dorothea Wierer | L21: 3 | M21: Elvira Øberg | N21: 5 | O21: Elvira Øberg | P21: 5 | Q21: Elvira Øberg | R21: 5 | S21: Justine Braisaz | T21: 0 | U21: Elvira Öberg | V21: 5 | W21: Røiseland | X21: 7 | Y21: Elvira Øberg | Z21: 5 | AA21: Elvira Öberg | AB21: 5 | AC21: Tiril Eckhoff | AD21: 0 | AE21: Elvira Øberg | AF21: 5 | AG21: Røiseland | AH21: 7 | AI21: Elvira Øberg | AJ21: 5 | AK21: Elvira Øberg | AL21: 5 | AM21: Elvira Øberg | AN21: 5 | AO21: Røiseland | AP21: 7 | AQ21: Elvira Øberg | AR21: 5 | AS21: Dzinara Alimbekava | AT21: 0 | AU21: Marthe Olsbu R | AV21: 7 | AW21: Elvira Oeberg | AX21: 5 | AY21: Olsbu Røiseland | AZ21: 7 | BA21: E. Øberg | BB21: 5 | BC21: Olsbu Røisland | BD21: 7 | BE21: Marte O. Røiseland | BF21: 7 | BG21: Marte Olsbu Røiseland | BH21: 7 | BI21: Marte Olsbu Røiseland | BJ21: 7
A22: Langrenn damer stafett | B22: 2022-02-12 | C22: Sverige | D22: 3 | E22: Sverige | F22: 3 | G22: Sverige | H22: 3 | I22: Norge | J22: 1 | K22: Sverige | L22: 3 | M22: Sverige | N22: 3 | O22: Sverige | P22: 3 | Q22: Sverige | R22: 3 | S22: Sverige | T22: 3 | U22: Norge | V22: 1 | W22: Sverige | X22: 3 | Y22: Norge | Z22: 1 | AA22: Sverige | AB22: 3 | AC22: Norge | AD22: 1 | AE22: Sverige | AF22: 3 | AG22: Sverige | AH22: 3 | AI22: Sverige | AJ22: 3 | AK22: Sverige | AL22: 3 | AM22: Sverige | AN22: 3 | AO22: Norge | AP22: 1 | AQ22: Sverige | AR22: 3 | AS22: Norge | AT22: 1 | AU22: Sverige | AV22: 3 | AW22: Sverige | AX22: 3 | AY22: Norge | AZ22: 1 | BA22: Sverige | BB22: 3 | BC22: sverige | BD22: 3 | BE22: Norge | BF22: 1 | BG22: Norge | BH22: 1 | BI22: Sverige | BJ22: 3
A23: Skiskyting menn sprint | B23: 2022-02-12 | C23: Loginov | D23: 0 | E23: Johannes T. Bø | F23: 7 | G23: Johannes T. Bøe | H23: 7 | I23: Quentin Fillon Maillet | J23: 5 | K23: Johannes Thingnes Bøe | L23: 7 | M23: Johannes Thingnes Bøe | N23: 7 | O23: Fillon Maillet | P23: 5 | Q23: Fillon Mailett | R23: 5 | S23: Johannes Thingnes Bø | T23: 7 | U23: Quentin F. Maillet | V23: 5 | W23: Fillon Maillet | X23: 5 | Y23: Malliet | Z23: 5 | AA23: Johannes Thingnes Bø | AB23: 7 | AC23: Johannes Thingnes Bø | AD23: 7 | AE23: Samuelson | AF23: 1 | AG23: Samuelsson | AH23: 1 | AI23: Fillon Maillet | AJ23: 5 | AK23: Johannes Bø | AL23: 7 | AM23: Sebastian Samuelsson | AN23: 1 | AO23: Johannes T.Bø | AP23: 7 | AQ23: Johannes Thingnes Bø | AR23: 7 | AS23: Quentin Fillon Maillet | AT23: 5 | AU23: Sebastian Samuelsson | AV23: 1 | AW23: Fillon Maillet | AX23: 5 | AY23: Samuelsson | AZ23: 1 | BA23: Fillon Maillet | BB23: 5 | BC23: tarjei Bøe | BD23: 3 | BE23: Johannes T. Bø | BF23: 7 | BG23: Quentin Fillon Maillet | BH23: 5 | BI23: Johannes Thingnes Bø | BJ23: 7
A24: Hopp menn stor bakke | B24: 2022-02-12 | C24: Kobayashi | D24: 5 | E24: Lindvik | F24: 7 | G24: Geiger | H24: 3 | I24: Halvor Egner Granerud | J24: 0 | K24: Marius Lindvik | L24: 7 | M24: Marius Lindvik | N24: 7 | O24: Kobayashi | P24: 5 | Q24: Lindvik | R24: 7 | S24: Ryoyu Kobayashi | T24: 5 | U24: Halvor E. Granerud | V24: 0 | W24: Lindvik | X24: 7 | Y24: Lindvik | Z24: 7 | AA24: Ryoyu Kobayashi | AB24: 5 | AC24: Geiger | AD24: 3 | AE24: M.Lindvik | AF24: 7 | AG24: Kobayashi | AH24: 5 | AI24: Lindvik | AJ24: 7 | AK24: Riyo kobayashi | AL24: 5 | AM24: Marius Lindvik | AN24: 7 | AO24: R.Kobayashi | AP24: 5 | AQ24: Karl Geiger | AR24: 3 | AS24: Anze Lanisek | AT24: 0 | AU24: Lindvik | AV24: 7 | AW24: Kobayashi | AX24: 5 | AY24: Geiger | AZ24: 3 | BA24: Lindvik | BB24: 7 | BC24: Lindvik | BD24: 7 | BE24: Karl Geiger | BF24: 3 | BG24: Ryoyu Kobayashi | BH24: 5 | BI24: Karl Geiger | BJ24: 3
A25: Alpint, storslalåm menn | B25: 2022-02-13 | C25: Odermatt | D25: 7 | E25: Odermatt | F25: 7 | G25: Odermatt | H25: 7 | I25: Marco Odermatt | J25: 7 | K25: Marco Odermatt | L25: 7 | M25: Marco Odermatt | N25: 7 | O25: Odermatt | P25: 7 | Q25: Odermatt | R25: 7 | S25: Marco Odermatt | T25: 7 | U25: Manuel Feller | V25: 0 | W25: Odermatt | X25: 7 | Y25: Kristoffersen | Z25: 0 | AA25: Marco Odermatt | AB25: 7 | AC25: Loic Mellard | AD25: 0 | AE25: Odermatt | AF25: 7 | AG25: Kristoffersen | AH25: 0 | AI25: Odermatt | AJ25: 7 | AK25: Marco Odermatt | AL25: 7 | AM25: Marco Odermatt | AN25: 7 | AO25: Odermatt | AP25: 7 | AQ25: Marco Odermatt | AR25: 7 | AS25: Marco Odermatt | AT25: 7 | AU25: Marco Odermatt | AV25: 7 | AW25: Odermatt | AX25: 7 | AY25: Odermatt | AZ25: 7 | BA25: Odermatt | BB25: 7 | BC25: H. Kristoffersen | BD25: 0 | BE25: Marco Odermatt | BF25: 7 | BG25: Marco Odermatt | BH25: 7 | BI25: Marco Odermatt | BJ25: 7
A26: Langrenn menn stafett | B26: 2022-02-13 | C26: Russland | D26: 7 | E26: Norge | F26: 5 | G26: Norge | H26: 5 | I26: Russland | J26: 7 | K26: Norge | L26: 5 | M26: Norge | N26: 5 | O26: Norge | P26: 5 | Q26: Norge | R26: 5 | S26: Norge | T26: 5 | U26: Norge | V26: 5 | W26: Norge | X26: 5 | Y26: Norge | Z26: 5 | AA26: Norge | AB26: 5 | AC26: Norge | AD26: 5 | AE26: Norge | AF26: 5 | AG26: Norge | AH26: 5 | AI26: Norge | AJ26: 5 | AK26: Norge | AL26: 5 | AM26: Norge | AN26: 5 | AO26: Russland | AP26: 7 | AQ26: Norge | AR26: 5 | AS26: Norge | AT26: 5 | AU26: Norge | AV26: 5 | AW26: Norge | AX26: 5 | AY26: Norge | AZ26: 5 | BA26: Norge | BB26: 5 | BC26: Norge | BD26: 5 | BE26: Norge | BF26: 5 | BG26: Norge | BH26: 5 | BI26: Norge | BJ26: 5
A27: Skiskyting kvinner jaktstart | B27: 2022-02-13 | C27: Røiseland | D27: 7 | E27: Røiseland | F27: 7 | G27: Røyseland | H27: 7 | I27: Marte Olsbu Røiseland | J27: 7 | K27: Tiril Eckhoff | L27: 3 | M27: Marte Olsbu Røiseland | N27: 7 | O27: Olsbu | P27: 7 | Q27: Røiseland | R27: 7 | S27: Justine Braisaz | T27: 0 | U27: Marte Olsbu Røiseland | V27: 7 | W27: Røiseland | X27: 7 | Y27: Røiseland | Z27: 7 | AA27: Marte Olsbu Røiseland | AB27: 7 | AC27: Tiril Eckhoff | AD27: 3 | AE27: Røiseland | AF27: 7 | AG27: Elvira Öberg | AH27: 5 | AI27: Røiseland | AJ27: 7 | AK27: Røisland | AL27: 7 | AM27: Marte Olsbu Røiseland | AN27: 7 | AO27: Røiseland | AP27: 7 | AQ27: Marte Olsbu Røiseland | AR27: 7 | AS27: Marte Røiseland Olsbu | AT27: 7 | AU27: Marte Olsbu R | AV27: 7 | AW27: Elvira Oeberg | AX27: 5 | AY27: Olsbu Røiseland | AZ27: 7 | BA27: Røiseland | BB27: 7 | BC27: Julia Simon | BD27: 0 | BE27: Marte O. Røiseland | BF27: 7 | BG27: Marte Olsbu Røiseland | BH27: 7 | BI27: Elvira Øeberg | BJ27: 5
A28: Skiskyting menn jaktstart | B28: 2022-02-13 | C28: Maillet | D28: 7 | E28: Tarjei Bøe | F28: 5 | G28: Johannes T. Bøe | H28: 1 | I28: Johannes Thingenes Bøe | J28: 1 | K28: Tarjei Bøe | L28: 5 | M28: Quentin Fillon Mailet | N28: 7 | O28: Fillon maillet | P28: 7 | Q28: Fillon Mailett | R28: 7 | S28: Johannes Thingnes Bø | T28: 1 | U28: Quentin F. Maillet | V28: 7 | W28: Fillon Maillet | X28: 7 | Y28: Johannes Bø | Z28: 1 | AA28: Johannes Thingnes Bø | AB28: 1 | AC28: Tarjei Bø | AD28: 5 | AE28: Thingnes Bø | AF28: 1 | AG28: Maillet | AH28: 7 | AI28: Fillon Maillet | AJ28: 7 | AK28: Fillon Maillet | AL28: 7 | AM28: Quentin Fillon Mailet | AN28: 7 | AO28: Fillion Maillet | AP28: 7 | AQ28: Quentin Fillon Maillet | AR28: 7 | AS28: Emilien Jaquelin | AT28: 0 | AU28: Fillon Maillet | AV28: 7 | AW28: Fillon Maillet | AX28: 7 | AY28: Fillon Maillet | AZ28: 7 | BA28: JT Bøe | BB28: 1 | BC28: Q F Maillet | BD28: 7 | BE28: Johannes T. Bø | BF28: 1 | BG28: Quentin Fillon Maillet | BH28: 7 | BI28: Quentin Fillon Maillet | BJ28: 7
A29: Hopp, laghopp menn stor bakke | B29: 2022-02-14 | C29: Slovenia | D29: 5 | E29: Norge | F29: 1 | G29: Tyskland | H29: 3 | I29: Tyskland | J29: 3 | K29: Norge | L29: 1 | M29: Slovenia | N29: 5 | O29: Tyskland | P29: 3 | Q29: Østerrike | R29: 7 | S29: Østerrike | T29: 7 | U29: Norge | V29: 1 | W29: Tyskland | X29: 3 | Y29: Norge | Z29: 1 | AA29: Norge | AB29: 1 | AC29: Norge | AD29: 1 | AE29: Norge | AF29: 1 | AG29: Tyskland | AH29: 3 | AI29: Tyskland | AJ29: 3 | AK29: Tyskland | AL29: 3 | AM29: Slovenia | AN29: 5 | AO29: Norge | AP29: 1 | AQ29: Tyskland | AR29: 3 | AS29: Tyskland | AT29: 3 | AU29: Norge | AV29: 1 | AW29: Tyskland | AX29: 3 | AY29: Norge | AZ29: 1 | BA29: Norge | BB29: 1 | BC29: Tyskland | BD29: 3 | BE29: Tyskland | BF29: 3 | BG29: Norge | BH29: 1 | BI29: Tyskland | BJ29: 3
A30: Alpint, utfor damer | B30: 2022-02-15 | C30: Suter | D30: 7 | E30: Mowinckel | F30: 0 | G30: Goggia | H30: 5 | I30: Sofia Goggia | J30: 5 | K30: Mirjam Puschner | L30: 0 | M30: Corinne Suter | N30: 7 | O30: Goggia | P30: 5 | Q30: Suter | R30: 7 | S30: Lara Gut-Behrami | T30: 0 | U30: Mikaela Shiffrin | V30: 0 | W30: Goggia | X30: 5 | Y30: Brignone | Z30: 0 | AA30: Corinne Suter | AB30: 7 | AC30: Corinne Suter | AD30: 7 | AE30: C.Suter | AF30: 7 | AG30: Suter | AH30: 7 | AI30: Suter | AJ30: 7 | AK30: Goggia | AL30: 5 | AM30: Corinne Suter | AN30: 7 | AO30: Suter | AP30: 7 | AQ30: Lara Gut-Behrami | AR30: 0 | AS30: Sofia Goggia | AT30: 5 | AU30: Gut-Behrami | AV30: 0 | AW30: Shiffrin | AX30: 0 | AY30: Gut-Berhami | AZ30: 0 | BA30: Suter | BB30: 7 | BC30: C Suter | BD30: 7 | BE30: Lara Gut | BF30: 0 | BG30: Sofia Goggia | BH30: 5 | BI30: Sofia Goggia | BJ30: 5
A31: Skiskyting stafett menn | B31: 2022-02-15 | C31: Norge | D31: 7 | E31: Frankrike | F31: 5 | G31: Norge | H31: 7 | I31: Norge | J31: 7 | K31: Norge | L31: 7 | M31: Frankrike | N31: 5 | O31: Norge | P31: 7 | Q31: Norge | R31: 7 | S31: Norge | T31: 7 | U31: Russland | V31: 3 | W31: Norge | X31: 7 | Y31: Norge | Z31: 7 | AA31: Norge | AB31: 7 | AC31: Norge | AD31: 7 | AE31: Norge | AF31: 7 | AG31: Norge | AH31: 7 | AI31: Norge | AJ31: 7 | AK31: Norge | AL31: 7 | AM31: Norge | AN31: 7 | AO31: Frankrike | AP31: 5 | AQ31: Norge | AR31: 7 | AS31: Norge | AT31: 7 | AU31: Norge | AV31: 7 | AW31: Norge | AX31: 7 | AY31: Norge | AZ31: 7 | BA31: Norge | BB31: 7 | BC31: Norge | BD31: 7 | BE31: Norge | BF31: 7 | BG31: Norge | BH31: 7 | BI31: Norge | BJ31: 7
A32: Kombinert, stor bakke menn | B32: 2022-02-15 | C32: Lamparter | D32: 1 | E32: Frenzel | F32: 0 | G32: Riiber | H32: 0 | I32: Johannes Lamparter | J32: 1 | K32: Jarl Magnus Riiber | L32: 0 | M32: Vincent Geiger | N32: 0 | O32: Lamparter | P32: 1 | Q32: Lamparter | R32: 1 | S32: Johannes Lamparter | T32: 1 | U32: Jarl Magnus Riiber | V32: 0 | W32: Lamparter | X32: 1 | Y32: Lamparter | Z32: 1 | AA32: Vinzenz Geiger | AB32: 0 | AC32: Jørgen Graabak | AD32: 7 | AE32: Graabak | AF32: 7 | AG32: Geiger | AH32: 0 | AI32: Riiber | AJ32: 0 | AK32: Riiber | AL32: 0 | AM32: Vinzenz Geiger | AN32: 0 | AO32: Lamparter | AP32: 1 | AQ32: Jarl Magnus Riiber | AR32: 0 | AS32: Johannes Lamparter | AT32: 1 | AU32: Johannes Lamparter | AV32: 1 | AW32: Riiber | AX32: 0 | AY32: Lamparter | AZ32: 1 | BA32: Riiber | BB32: 0 | BC32: V Geiger | BD32: 0 | BE32: Jarl M. Riiber | BF32: 0 | BG32: Vinzenz Geiger | BH32: 0 | BI32: Johannes Lamparter | BJ32: 1
A33: Alpint, slalåm menn | B33: 2022-02-16 | C33: Foss-Solevåg | D33: 3 | E33: Solevåg | F33: 3 | G33: Kristoffersen | H33: 1 | I33: Lucas Braathen | J33: 0 | K33: Henrik Kristtoffersen | L33: 1 | M33: Sebastian Foss Solevåg | N33: 3 | O33: Feller | P33: 0 | Q33: Noel | R33: 7 | S33: Lucas Braathen | T33: 0 | U33: Lucas Braathen | V33: 0 | W33: Kristoffersen | X33: 1 | Y33: Kristoffersen | Z33: 1 | AA33: Henrik Kristoffersen | AB33: 1 | AC33: Marco Schwarz | AD33: 0 | AE33: Clement Noel | AF33: 7 | AG33: Braathen | AH33: 0 | AI33: Solevåg | AJ33: 3 | AK33: Bråthen | AL33: 0 | AM33: Clement Noel | AN33: 7 | AO33: Braathen | AP33: 0 | AQ33: Lucas Braathen | AR33: 0 | AS33: Lucas Braathen | AT33: 0 | AU33: Lucas Braathen | AV33: 0 | AW33: Feller | AX33: 0 | AY33: Noël | AZ33: 7 | BA33: Kristoffersen | BB33: 1 | BC33: L Braathen | BD33: 0 | BE33: Lucas Braaten | BF33: 0 | BG33: Lucas Braathen | BH33: 0 | BI33: Clement Noel | BJ33: 7
A34: Skiskyting, stafett kvinner | B34: 2022-02-16 | C34: Norge | D34: 1 | E34: Frankrike | F34: 1 | G34: Frankrike | H34: 1 | I34: Norge | J34: 1 | K34: Sverige | L34: 7 | M34: Norge | N34: 1 | O34: Frankrike | P34: 1 | Q34: Sverige | R34: 7 | S34: Frankrike | T34: 1 | U34: Sverige | V34: 7 | W34: Sverige | X34: 7 | Y34: Norge | Z34: 1 | AA34: Sverige | AB34: 7 | AC34: Frankrike | AD34: 1 | AE34: Sverige | AF34: 7 | AG34: Sverige | AH34: 7 | AI34: Sverige | AJ34: 7 | AK34: Sverige | AL34: 7 | AM34: Sverige | AN34: 7 | AO34: Frankrike | AP34: 1 | AQ34: Norge | AR34: 1 | AS34: Frankrike | AT34: 1 | AU34: Frankrike | AV34: 1 | AW34: Sverige | AX34: 7 | AY34: Norge | AZ34: 1 | BA34: Sverige | BB34: 7 | BC34: Frankrike | BD34: 1 | BE34: Norge | BF34: 1 | BG34: Norge | BH34: 1 | BI34: Sverige | BJ34: 7
A35: Langrenn damer lagsprint klassisk | B35: 2022-02-16 | C35: Sverige | D35: 5 | E35: Sverige | F35: 5 | G35: Sverige | H35: 5 | I35: Sverige | J35: 5 | K35: Sverige | L35: 5 | M35: Sverige | N35: 5 | O35: Sverige | P35: 5 | Q35: Sverige | R35: 5 | S35: Sverige | T35: 5 | U35: Norge | V35: 0 | W35: Sverige | X35: 5 | Y35: Sverige | Z35: 5 | AA35: Sverige | AB35: 5 | AC35: Norge | AD35: 0 | AE35: Sverige | AF35: 5 | AG35: Sverige | AH35: 5 | AI35: Sverige | AJ35: 5 | AK35: Sverige | AL35: 5 | AM35: Sverige | AN35: 5 | AO35: Sverige | AP35: 5 | AQ35: Sverige | AR35: 5 | AS35: Sverige | AT35: 5 | AU35: Sverige | AV35: 5 | AW35: Sverige | AX35: 5 | AY35: Sverige | AZ35: 5 | BA35: Sverige | BB35: 5 | BC35: sverige | BD35: 5 | BE35: Sverige | BF35: 5 | BG35: Sverige | BH35: 5 | BI35: Sverige | BJ35: 5
A36: Langrenn menn lagsprint klassisk | B36: 2022-02-16 | C36: Norge | D36: 7 | E36: Norge | F36: 7 | G36: Norge | H36: 7 | I36: Russland | J36: 3 | K36: Norge | L36: 7 | M36: Norge | N36: 7 | O36: Norge | P36: 7 | Q36: Norge | R36: 7 | S36: Norge | T36: 7 | U36: Norge | V36: 7 | W36: Norge | X36: 7 | Y36: Norge | Z36: 7 | AA36: Norge | AB36: 7 | AC36: Norge | AD36: 7 | AE36: Norge | AF36: 7 | AG36: Norge | AH36: 7 | AI36: Norge | AJ36: 7 | AK36: Norge | AL36: 7 | AM36: Norge | AN36: 7 | AO36: Norge | AP36: 7 | AQ36: Norge | AR36: 7 | AS36: Norge | AT36: 7 | AU36: Norge | AV36: 7 | AW36: Norge | AX36: 7 | AY36: Norge | AZ36: 7 | BA36: Norge | BB36: 7 | BC36: Norge | BD36: 7 | BE36: Norge | BF36: 7 | BG36: Norge | BH36: 7 | BI36: Norge | BJ36: 7
A37: Alpint, kombinasjon kvinner | B37: 2022-02-17 | C37: Shiffrin | D37: 0 | E37: Vlhova | F37: 0 | G37: Shiffrin | H37: 0 | I37: Mikaela Shiffrin | J37: 0 | K37: Mikaela Shiffrin | L37: 0 | M37: Mikaela Shiffrin | N37: 0 | O37: Vlhova | P37: 0 | Q37: Shiffrin | R37: 0 | S37: Mikaela Shiffrin | T37: 0 | U37: Sofia Goggia | V37: 0 | W37: Shiffrin | X37: 0 | Y37: Schiffrin | Z37: 0 | AA37: Mikaela Shifrinn | AB37: 0 | AC37: Corinne Suter | AD37: 0 | AE37: M. Shiffrin | AF37: 0 | AG37: Vlhova | AH37: 0 | AI37: Shiffrin | AJ37: 0 | AK37: Shiffrinn | AL37: 0 | AM37: Mikaela Shiffrin | AN37: 0 | AO37: Shiffrin | AP37: 0 | AQ37: Mikaela Shiffrin | AR37: 0 | AS37: Mikaela Shiffrin | AT37: 0 | AU37: Shiffrin | AV37: 0 | AW37: Shiffrin | AX37: 0 | AY37: Shiffrin | AZ37: 0 | BA37: Shiffrin | BB37: 0 | BC37: M Shiffrin | BD37: 0 | BE37: Michaela Shifferin | BF37: 0 | BG37: Mikaela Shiffrin | BH37: 0 | BI37: Mikaela Shiffrin | BJ37: 0
A38: Kombinert, stor bakke lag menn | B38: 2022-02-17 | C38: Tyskland | D38: 5 | E38: Norge | F38: 7 | G38: Norge | H38: 7 | I38: Norge | J38: 7 | K38: Norge | L38: 7 | M38: Tyskland | N38: 5 | O38: Tyskland | P38: 5 | Q38: Tyskland | R38: 5 | S38: Tyskland | T38: 5 | U38: Norge | V38: 7 | W38: Tyskland | X38: 5 | Y38: Norge | Z38: 7 | AA38: Tyskland | AB38: 5 | AC38: Norge | AD38: 7 | AE38: Tyskland | AF38: 5 | AG38: Tyskland | AH38: 5 | AI38: Tyskland | AJ38: 5 | AK38: Norge | AL38: 7 | AM38: Tyskland | AN38: 5 | AO38: Tyskland | AP38: 5 | AQ38: Tyskland | AR38: 5 | AS38: Tyskland | AT38: 5 | AU38: Tyskland | AV38: 5 | AW38: Tyskland | AX38: 5 | AY38: Tyskland | AZ38: 5 | BA38: Norge | BB38: 7 | BC38: Norge | BD38: 7 | BE38: Norge | BF38: 7 | BG38: Norge | BH38: 7 | BI38: Tyskland | BJ38: 5
A39: Skiskyting fellesstart kvinner | B39: 2022-02-18 | C39: Røiseland | D39: 3 | E39: Tandrevold | F39: 0 | G39: Røyseland | H39: 3 | I39: Tirill Ekhoff | J39: 5 | K39: Marte Olsbu Røiseland | L39: 3 | M39: Hanna Øberg | N39: 0 | O39: Marthe Olsbu | P39: 3 | Q39: Alimbekava | R39: 0 | S39: Marte Olsbu Røiseland | T39: 3 | U39: Marte Olsbu Røiseland | V39: 3 | W39: Røiseland | X39: 3 | Y39: Tirill Eckhof | Z39: 5 | AA39: Marte Olsbu Røiseland | AB39: 3 | AC39: Mona Brorsson | AD39: 0 | AE39: Hanna Øberg | AF39: 0 | AG39: Tandrevold | AH39: 0 | AI39: Røiseland | AJ39: 3 | AK39: Røiseland | AL39: 3 | AM39: Kristina Reztova | AN39: 1 | AO39: Reztsova | AP39: 1 | AQ39: Dorothea Wierer | AR39: 0 | AS39: Dorothea Wirer | AT39: 0 | AU39: Marte Olsbu R | AV39: 3 | AW39: Elvira Oeberg | AX39: 0 | AY39: Eckhoff | AZ39: 5 | BA39: Røiseland | BB39: 3 | BC39: D Wierer | BD39: 0 | BE39: Marte O. Røiseland | BF39: 3 | BG39: Marte Olsbu Røiseland | BH39: 3 | BI39: Marte Olsbu Røiseland | BJ39: 3
A40: Skiskyting fellesstart menn | B40: 2022-02-18 | C40: J.T Bøe | D40: 7 | E40: Lægreid | F40: 1 | G40: Quentin | H40: 1 | I40: Johannes Thingenes Bøe | J40: 7 | K40: Johannes Thingnes Bøe | L40: 7 | M40: Quentin Fillon Mailet | N40: 1 | O40: Fillon Maillet | P40: 1 | Q40: Fillon Mailett | R40: 1 | S40: Emilien Jacquelin | T40: 0 | U40: Tarjei Bø | V40: 0 | W40: Fillon Maillet | X40: 1 | Y40: Tarjei Bøe | Z40: 0 | AA40: Quentin Fillon Maillet | AB40: 1 | AC40: Tarjei Bø | AD40: 0 | AE40: Thingnes Bø | AF40: 7 | AG40: Tarjei Bø | AH40: 0 | AI40: Fillon Maillet | AJ40: 1 | AK40: Fillon Maillet | AL40: 1 | AM40: Tarjei Bø | AN40: 0 | AO40: Fillion Maillet | AP40: 1 | AQ40: Quentin Fillon Maillet | AR40: 1 | AS40: Johannes Thingnes Bø | AT40: 7 | AU40: Johannes T. Bø | AV40: 7 | AW40: Fillon Maillet | AX40: 1 | AY40: Thingnes Bøe | AZ40: 7 | BA40: JT Bøe | BB40: 7 | BC40: J.T. Bøe | BD40: 7 | BE40: Tarjei Bø | BF40: 0 | BG40: Johannes Thingnes Bø | BH40: 7 | BI40: Sebastian Samuelsson | BJ40: 0
A41: Alpint, lagkonkurranse mix | B41: 2022-02-19 | C41: Østerike | D41: 7 | E41: Norge | F41: 3 | G41: Østerrike | H41: 7 | I41: Italia | J41: 0 | K41: Norge | L41: 3 | M41: Østerrike | N41: 7 | O41: Sveits | P41: 1 | Q41: Østerrike | R41: 7 | S41: Sverige | T41: 0 | U41: Norge | V41: 3 | W41: Italia | X41: 0 | Y41: Østerrike | Z41: 7 | AA41: Norge | AB41: 3 | AC41: USA | AD41: 1 | AE41: Østerrike | AF41: 7 | AG41: Sveits | AH41: 1 | AI41: Østerrike | AJ41: 7 | AK41: Norge | AL41: 3 | AM41: Østerrike | AN41: 7 | AO41: Norge | AP41: 3 | AQ41: Østerrike | AR41: 7 | AS41: Østerrike | AT41: 7 | AU41: Østerrike | AV41: 7 | AW41: Østerrike | AX41: 7 | AY41: Østerrike | AZ41: 7 | BA41: Italia | BB41: 0 | BC41: Norge | BD41: 3 | BE41: Østerrike | BF41: 7 | BG41: Norge | BH41: 3 | BI41: Sveits | BJ41: 1
A42: Langrenn 50 km fri fellesstart menn | B42: 2022-02-19 | C42: Klæbø | D42: 0 | E42: Klæbo | F42: 0 | G42: Bulsjunov | H42: 7 | I42: Alexander Bolshunov | J42: 7 | K42: Alexander Bolshunov | L42: 7 | M42: Aleksander Bolsjunov | N42: 7 | O42: Klæbo | P42: 0 | Q42: Bolsjunov | R42: 7 | S42: H. C. Holund | T42: 0 | U42: Simen H. Krüger | V42: 3 | W42: Bolsjunov | X42: 7 | Y42: Klæbo | Z42: 0 | AA42: Alexander Bolshunov | AB42: 7 | AC42: Ivo Niskanen | AD42: 0 | AE42: H.C Holund | AF42: 0 | AG42: Bolshunov | AH42: 7 | AI42: Bulsjunov | AJ42: 7 | AK42: Klæbo | AL42: 0 | AM42: Johannes Høsflot Klæbo | AN42: 0 | AO42: Holund | AP42: 0 | AQ42: Hans Christer Holund | AR42: 0 | AS42: Alexander Bolshunov | AT42: 7 | AU42: Bolsjunov | AV42: 7 | AW42: Bolshunov | AX42: 7 | AY42: Bolshunov | AZ42: 7 | BA42: Klæbo | BB42: 0 | BC42: HC Holund | BD42: 0 | BE42: Aleksander Bolsjhunov | BF42: 7 | BG42: Johannes Høsflot Klæbo | BH42: 0 | BI42: Hans Christer Holund | BJ42: 0
A43: Langrenn 30 km fri fellesstart kvinner | B43: 2022-02-20 | C43: Johaug | D43: 7 | E43: Johaug | F43: 7 | G43: Johaug | H43: 7 | I43: Therese Johaug | J43: 7 | K43: Therese Johaug | L43: 7 | M43: Therese Johaug | N43: 7 | O43: Johaug | P43: 7 | Q43: Johaug | R43: 7 | S43: Therese Johaug | T43: 7 | U43: Maja Dahlqvist | V43: 0 | W43: Johaug | X43: 7 | Y43: Johaug | Z43: 7 | AA43: Frida Karlsson | AB43: 0 | AC43: Johaug | AD43: 7 | AE43: Johaug | AF43: 7 | AG43: Johaug | AH43: 7 | AI43: Johaug | AJ43: 7 | AK43: Therese Johaug | AL43: 7 | AM43: Therese Johaug | AN43: 7 | AO43: Johaug | AP43: 7 | AQ43: Therese Johaug | AR43: 7 | AS43: Therese Johaug | AT43: 7 | AU43: Therese Johaug | AV43: 7 | AW43: Johaug | AX43: 7 | AY43: Johaug | AZ43: 7 | BA43: Johaug | BB43: 7 | BC43: T. Johaug | BD43: 7 | BE43: Therese Johaug | BF43: 7 | BG43: Therese Johaug | BH43: 7 | BI43: Therese Johaug | BJ43: 7
A44: Antall øvelser tatt med i utregningen: | D44: =COUNT(D2:D43) -> 42 | F44: =COUNT(F2:F43) -> 42 | H44: =COUNT(H2:H43) -> 42 | J44: =COUNT(J2:J43) -> 42 | L44: =COUNT(L2:L43) -> 42 | N44: =COUNT(N2:N43) -> 42 | P44: =COUNT(P2:P43) -> 42 | R44: =COUNT(R2:R43) -> 42 | T44: =COUNT(T2:T43) -> 42 | V44: =COUNT(V2:V43) -> 42 | X44: =COUNT(X2:X43) -> 42 | Z44: =COUNT(Z2:Z43) -> 42 | AB44: =COUNT(AB2:AB43) -> 42 | AD44: =COUNT(AD2:AD43) -> 42 | AF44: =COUNT(AF2:AF43) -> 42 | AH44: =COUNT(AH2:AH43) -> 42 | AJ44: =COUNT(AJ2:AJ43) -> 42 | AL44: =COUNT(AL2:AL43) -> 42 | AN44: =COUNT(AN2:AN43) -> 42 | AP44: =COUNT(AP2:AP43) -> 42 | AR44: =COUNT(AR2:AR43) -> 42 | AT44: =COUNT(AT2:AT43) -> 42 | AV44: =COUNT(AV2:AV43) -> 42 | AX44: =COUNT(AX2:AX43) -> 42 | AZ44: =COUNT(AZ2:AZ43) -> 42 | BB44: =COUNT(BB2:BB43) -> 42 | BD44: =COUNT(BD2:BD43) -> 42 | BF44: =COUNT(BF2:BF43) -> 42 | BH44: =COUNT(BH2:BH43) -> 42 | BJ44: =COUNT(BJ2:BJ43) -> 42
A46: * To deltagere ved navn "Bouchet" i skiskyting 15 km, og det var den som var nederst i World Cup som kom på andreplass. Dermed får Morten 0 poeng.

Sheet Stillingen
A1: Nr. | B1: Navn | C1: P.
A2: =RANK(C2,C2:C31) -> 1 | B2: =Tipsene!Q1 -> Håkon Austrheim | C2: =Tipsene!R1 -> 204 | F2: Du må selvsagt legge inn resultatene i tabellen på den første arkfanen for at dette skal virke.
A3: =RANK(C3,C2:C31) -> 2 | B3: =Tipsene!W1 -> Ivar Areklett | C3: =Tipsene!X1 -> 188
A4: =RANK(C4,C2:C31) -> 3 | B4: =Tipsene!AI1 -> Leif Andre Brekke | C4: =Tipsene!AJ1 -> 182
A5: =RANK(C5,C2:C31) -> 4 | B5: =Tipsene!AW1 -> Robert Aak Eide | C5: =Tipsene!AX1 -> 181
A6: =RANK(C6,C2:C31) -> 5 | B6: =Tipsene!AE1 -> Kjell Inge Ingebrigtsen | C6: =Tipsene!AF1 -> 178
A7: =RANK(C7,C2:C31) -> 6 | B7: =Tipsene!AM1 -> Martin Austrheim | C7: =Tipsene!AN1 -> 175
A8: =RANK(C8,C2:C31) -> 7 | B8: =Tipsene!BA1 -> Terje Osmundsen | C8: =Tipsene!BB1 -> 172
A9: =RANK(C9,C2:C31) -> 8 | B9: =Tipsene!AK1 -> Magne Melkevik | C9: =Tipsene!AL1 -> 169
A10: =RANK(C10,C2:C31) -> 8 | B10: =Tipsene!BC1 -> Tobby Voilås | C10: =Tipsene!BD1 -> 169 | F10: Du får 7 poeng om ditt tips i en øvelse kommer på førsteplass.
A11: =RANK(C11,C2:C31) -> 8 | B11: =Tipsene!BI1 -> Torgeir Katla | C11: =Tipsene!BJ1 -> 169 | F11: Andreplass gir 5 poeng.
A12: =RANK(C12,C2:C31) -> 11 | B12: =Tipsene!G1 -> Bjørn Erik Hansen | C12: =Tipsene!H1 -> 168 | F12: Tredjeplass 3 poeng.
A13: =RANK(C13,C2:C31) -> 12 | B13: =Tipsene!C1 -> Anders Auestad | C13: =Tipsene!D1 -> 165 | F13: Fjerde- til sjetteplass gir 1 poeng.
A14: =RANK(C14,C2:C31) -> 13 | B14: =Tipsene!M1 -> Erlend F. Matre | C14: =Tipsene!N1 -> 164
A15: =RANK(C15,C2:C31) -> 14 | B15: =Tipsene!AY1 -> Sigurd S. Staveland | C15: =Tipsene!AZ1 -> 160
A16: =RANK(C16,C2:C31) -> 15 | B16: =Tipsene!AQ1 -> Nikolai Ellingsen | C16: =Tipsene!AR1 -> 159
A17: =RANK(C17,C2:C31) -> 15 | B17: =Tipsene!AU1 -> Onar Ohm Børretzen | C17: =Tipsene!AV1 -> 159
A18: =RANK(C18,C2:C31) -> 15 | B18: =Tipsene!BE1 -> Toralf Geitung | C18: =Tipsene!BF1 -> 159
A19: =RANK(C19,C2:C31) -> 18 | B19: =Tipsene!AS1 -> Oddve Solberg | C19: =Tipsene!AT1 -> 158
A20: =RANK(C20,C2:C31) -> 19 | B20: =Tipsene!AA1 -> Jørgen Ohm | C20: =Tipsene!AB1 -> 157
A21: =RANK(C21,C2:C31) -> 19 | B21: =Tipsene!BG1 -> Tore Geitung | C21: =Tipsene!BH1 -> 157
A22: =RANK(C22,C2:C31) -> 21 | B22: =Tipsene!O1 -> Geir Auestad | C22: =Tipsene!P1 -> 156
A23: =RANK(C23,C2:C31) -> 22 | B23: =Tipsene!K1 -> Einar Matre | C23: =Tipsene!L1 -> 154
A24: =RANK(C24,C2:C31) -> 23 | B24: =Tipsene!AO1 -> Morten Løvik | C24: =Tipsene!AP1 -> 153
A25: =RANK(C25,C2:C31) -> 24 | B25: =Tipsene!Y1 -> Johannes Austrheim | C25: =Tipsene!Z1 -> 147
A26: =RANK(C26,C2:C31) -> 25 | B26: =Tipsene!E1 -> Audun Tyssøy | C26: =Tipsene!F1 -> 143
A27: =RANK(C27,C2:C31) -> 25 | B27: =Tipsene!I1 -> Douglas Murphy | C27: =Tipsene!J1 -> 143
A28: =RANK(C28,C2:C31) -> 27 | B28: =Tipsene!AG1 -> Kristian Røvang | C28: =Tipsene!AH1 -> 141
A29: =RANK(C29,C2:C31) -> 28 | B29: =Tipsene!S1 -> Herman Austrheim | C29: =Tipsene!T1 -> 138
A30: =RANK(C30,C2:C31) -> 29 | B30: =Tipsene!AC1 -> Jørgen Voilås | C30: =Tipsene!AD1 -> 119
A31: =RANK(C31,C2:C31) -> 30 | B31: =Tipsene!U1 -> Hilde Storbakken | C31: =Tipsene!V1 -> 86
